[Event "ESTCC 65 2019"]
[Site "Mali Losinj"]
[Date "2019.09.19"]
[Round "2.10"]
[White "Hutchinson, Paul A"]
[Black "Westerinen, Heikki M.J."]
[Result "1/2-1/2"]
[ECO "A48"]
[WhiteElo "2124"]
[BlackElo "2296"]
[Annotator "NA"]
[PlyCount "113"]
[EventDate "2019.09.18"]
[EventType "team-tourn"]
[EventCountry "CRO"]
[SourceTitle "playchess.com"]
[Source "ChessBase"]
[SourceQuality "1"]
[WhiteTeam "England"]
[BlackTeam "Finland"]
[WhiteTeamCountry "ENG"]
[BlackTeamCountry "FIN"]
[TimeControl "40/5400+30:1800+30"]

1. d4 {[%emt 0:00:30]} Nf6 {[%emt 0:00:30]} 2. Nf3 {[%emt 0:00:00]} g6 {[%emt 0:00:30]} 3. Bf4 {[%emt 0:00:00]} Bg7 {[%emt 0:01:30]} 4. e3 {[%emt 0:00:30]} O-O {[%emt 0:01:30]} 5. h3 {[%emt 0:00:00]} d6 {[%emt 0:01:30]} 6. Nbd2 {[%emt 0:01:00]} Nc6 {[%emt 0:01:30]} 7. Bh2 {[%emt 0:00:30]} Re8 {[%emt 0:08:30]} 8. Be2 {[%emt 0:10:30]} Nd7 {[%emt 0:07:30]} 9. c3 {[%emt 0:06:30]} e5 {[%emt 0:01:30]} 10. Nc4 {[%emt 0:02:30]} e4 {[%emt 0:01:30]} 11. Nfd2 {[%emt 0:00:30]} b5 {[%emt 0:10:30]} 12. Na3 {[%emt 0:00:00]} a6 {[%emt 0:00:30]} 13. Nc2 {[%emt 0:01:00]} Qg5 {[%emt 0:08:30]} 14. Bg3 {[%emt 0:01:30]} h5 {[%emt 0:00:30]} 15. Bf4 {[%emt 0:08:30]} Qe7 {[%emt 0:07:30]} 16. g4 {[%emt 0:00:30]} g5 {[%emt 0:02:30]} 17. Bh2 {[%emt 0:00:00]} h4 {[%emt 0:00:30]} 18. Nxe4 {[%emt 0:01:00]} Bb7 {[%emt 0:01:30]} 19. f3 {[%emt 0:01:30]} Nb6 {[%emt 0:03:30]} 20. Qd3 {[%emt 0:04:30]} Na5 {[%emt 0:02:30]} 21. O-O-O {[%emt 0:03:30]} Rad8 {[%emt 0:00:30]} 22. Nf2 {[%emt 0:05:30]} Bd5 {[%emt 0:03:30]} 23. b4 {[%emt 0:18:30]} Bc4 {[%emt 0:02:30]} 24. Qd2 {[%emt 0:00:30]} Bxe2 {[%emt 0:00:30]} 25. Qxe2 {[%emt 0:00:00]} Nac4 {[%emt 0:00:30]} 26. e4 {[%emt 0:10:00]} Na4 {[%emt 0:02:30]} 27. Rd3 {[%emt 0:00:30]} Nab2 {[%emt 0:02:30]} 28. Ne3 {[%emt 0:00:30]} Nxd3+ {[%emt 0:00:00]} 29. Nxd3 {[%emt 0:01:30]} Nxe3 {[%emt 0:00:00]} 30. Qxe3 {[%emt 0:00:00]} Ra8 {[%emt 0:03:30]} 31. Kb2 {[%emt 0:05:02]} a5 {[%emt 0:02:30]} 32. Ra1 {[%emt 0:00:07]} c5 {[%emt 0:05:24]} 33. bxc5 {[%emt 0:06:16]} dxc5 {[%emt 0:00:08]} 34. Nxc5 {[%emt 0:01:43]} b4 {[%emt 0:00:15]} 35. e5 {[%emt 0:00:38]} bxc3+ {[%emt 0:00:34]} 36. Qxc3 {[%emt 0:00:10]} Rab8+ {[%emt 0:00:59]} 37. Kc2 {[%emt 0:00:07]} Qc7 {[%emt 0:04:08]} 38. Na6 {[%emt 0:02:18]} Qxc3+ {[%emt 0:00:39]} 39. Kxc3 {[%emt 0:00:07]} Rec8+ {[%emt 0:00:36]} 40. Nc5 {[%emt 0:00:07]} Bf8 {[%emt 0:01:23]} 41. Bg1 {[%emt 0:30:24]} a4 {[%emt 0:31:35]} 42. Re1 {[%emt 0:03:46]} a3 {[%emt 0:00:42]} 43. Re2 {[%emt 0:00:11]} Rb1 {[%emt 0:00:51]} 44. Be3 {[%emt 0:03:09]} Rh1 {[%emt 0:00:29]} 45. Bxg5 {[%emt 0:01:05]} Rxh3 {[%emt 0:00:22]} 46. Kc4 {[%emt 0:00:11]} Rh1 {[%emt 0:01:55]} 47. Kd5 {[%emt 0:01:56]} Bxc5 {[%emt 0:03:30]} 48. dxc5 {[%emt 0:00:07]} h3 {[%emt 0:00:16]} 49. Bf4 {[%emt 0:00:44]} Rf1 {[%emt 0:00:58]} 50. e6 {[%emt 0:01:00]} fxe6+ {[%emt 0:01:15]} 51. Rxe6 {[%emt 0:00:56]} Rxf3 {[%emt 0:00:54]} 52. Be5 {[%emt 0:00:00]} Rf7 {[%emt 0:00:00]} 53. c6 {[%emt 0:00:00]} Rh7 {[%emt 0:00:00]} 54. Rg6+ {[%emt 0:00:00]} Kf7 {[%emt 0:00:00]} 55. Rf6+ {[%emt 0:00:00]} Kg8 {[%emt 0:00:00]} 56. Rg6+ {[%emt 0:00:00]} Kf7 {[%emt 0:00:00]} 57. Rf6+ {[%emt 0:00:00]} 1/2-1/2

[Event "ESTCC 65 2019"]
[Site "Mali Losinj"]
[Date "2019.09.19"]
[Round "2.11"]
[White "Kivimaki, Jaakko"]
[Black "Hewson, Brian W R"]
[Result "1-0"]
[ECO "D03"]
[WhiteElo "2195"]
[BlackElo "2074"]
[Annotator "NA"]
[PlyCount "83"]
[EventDate "2019.09.18"]
[EventType "team-tourn"]
[EventCountry "CRO"]
[SourceTitle "playchess.com"]
[Source "ChessBase"]
[SourceQuality "1"]
[WhiteTeam "Finland"]
[BlackTeam "England"]
[WhiteTeamCountry "FIN"]
[BlackTeamCountry "ENG"]
[TimeControl "40/5400+30:1800+30"]

1. d4 {[%emt 0:00:30]} Nf6 {[%emt 0:00:30]} 2. Nf3 {[%emt 0:00:00]} e6 {[%emt 0:02:30]} 3. Bg5 {[%emt 0:00:00]} c5 {[%emt 0:01:30]} 4. e3 {[%emt 0:00:30]} Nc6 {[%emt 0:01:30]} 5. Nbd2 {[%emt 0:01:30]} d5 {[%emt 0:01:30]} 6. c3 {[%emt 0:00:30]} h6 {[%emt 0:10:30]} 7. Bh4 {[%emt 0:00:30]} cxd4 {[%emt 0:00:30]} 8. exd4 {[%emt 0:00:30]} Be7 {[%emt 0:00:00]} 9. h3 {[%emt 0:02:30]} Nh5 {[%emt 0:09:00]} 10. Bxe7 {[%emt 0:01:30]} Qxe7 {[%emt 0:00:30]} 11. Ne5 {[%emt 0:04:30]} Nxe5 {[%emt 0:09:30]} 12. dxe5 {[%emt 0:02:30]} g6 {[%emt 0:04:30]} 13. g4 {[%emt 0:11:30]} Ng7 {[%emt 0:00:30]} 14. Bg2 {[%emt 0:01:30]} h5 {[%emt 0:01:30]} 15. Nf3 {[%emt 0:05:30]} Bd7 {[%emt 0:04:30]} 16. Qd4 {[%emt 0:02:30]} b6 {[%emt 0:04:30]} 17. O-O {[%emt 0:02:30]} hxg4 {[%emt 0:00:30]} 18. hxg4 {[%emt 0:00:30]} Rc8 {[%emt 0:00:30]} 19. b3 {[%emt 0:04:30]} Qc5 {[%emt 0:04:30]} 20. Qf4 {[%emt 0:07:30]} Qe7 {[%emt 0:02:30]} 21. Rac1 {[%emt 0:04:30]} b5 {[%emt 0:03:30]} 22. Ng5 {[%emt 0:06:30]} Rh4 {[%emt 0:02:30]} 23. Nf3 {[%emt 0:04:30]} Rh8 {[%emt 0:07:30]} 24. Rfd1 {[%emt 0:02:30]} Kf8 {[%emt 0:01:30]} 25. Bf1 {[%emt 0:01:30]} Ne8 {[%emt 0:04:30]} 26. Bd3 {[%emt 0:02:30]} Kg7 {[%emt 0:00:00]} 27. Kg2 {[%emt 0:00:30]} f6 {[%emt 0:03:00]} 28. Rh1 {[%emt 0:01:30]} fxe5 {[%emt 0:05:10]} 29. Qxe5+ {[%emt 0:09:30]} Qf6 {[%emt 0:00:51]} 30. Rxh8 {[%emt 0:00:30]} Kxh8 {[%emt 0:00:23]} 31. Qh2+ {[%emt 0:05:09]} Kg8 {[%emt 0:02:08]} 32. Ne5 {[%emt 0:01:17]} Bc6 {[%emt 0:03:46]} 33. Bxg6 {[%emt 0:02:17]} Nd6 {[%emt 0:03:27]} 34. Qh7+ {[%emt 0:05:49]} Kf8 {[%emt 0:00:14]} 35. Re1 {[%emt 0:02:13]} b4 {[%emt 0:05:53]} 36. Nxc6 {[%emt 0:02:14]} Rxc6 {[%emt 0:00:04]} 37. Qh6+ {[%emt 0:01:35]} Ke7 {[%emt 0:01:08]} 38. g5 {[%emt 0:00:54]} Qxc3 {[%emt 0:00:31]} 39. Qh7+ {[%emt 0:00:25]} Kd8 {[%emt 0:00:31]} 40. Rxe6 {[%emt 0:00:31]} Qd4 {[%emt 0:00:00]} 41. Qe7+ {[%emt 0:06:06]} Kc8 {[%emt 0:00:54]} 42. Bf5 {[%emt 0:03:30]} 1-0

[Event "ESTCC 65 2019"]
[Site "Mali Losinj"]
[Date "2019.09.19"]
[Round "2.12"]
[White "Reuben, Stewart"]
[Black "Vinke, Dietmar"]
[Result "0-1"]
[ECO "A25"]
[WhiteElo "1983"]
[BlackElo "2129"]
[Annotator "NA"]
[PlyCount "52"]
[EventDate "2019.09.18"]
[EventType "team-tourn"]
[EventCountry "CRO"]
[SourceTitle "playchess.com"]
[Source "ChessBase"]
[SourceQuality "1"]
[WhiteTeam "England"]
[BlackTeam "Finland"]
[WhiteTeamCountry "ENG"]
[BlackTeamCountry "FIN"]
[TimeControl "40/5400+30:1800+30"]

1. c4 {[%emt 0:00:30]} e5 {[%emt 0:00:30]} 2. Nc3 {[%emt 0:00:00]} Nc6 {[%emt 0:00:00]} 3. g3 {[%emt 0:00:00]} g6 {[%emt 0:00:00]} 4. Bg2 {[%emt 0:00:30]} Bg7 {[%emt 0:00:00]} 5. e3 {[%emt 0:00:00]} f5 {[%emt 0:02:00]} 6. Nge2 {[%emt 0:00:00]} Nf6 {[%emt 0:00:30]} 7. d4 {[%emt 0:02:30]} d6 {[%emt 0:03:30]} 8. Bxc6+ {[%emt 0:04:30]} bxc6 {[%emt 0:00:30]} 9. dxe5 {[%emt 0:01:30]} dxe5 {[%emt 0:00:30]} 10. Qxd8+ {[%emt 0:00:00]} Kxd8 {[%emt 0:00:30]} 11. b3 {[%emt 0:01:00]} Ke7 {[%emt 0:00:00]} 12. Ba3+ {[%emt 0:01:30]} Kf7 {[%emt 0:00:00]} 13. Rd1 {[%emt 0:04:30]} h5 {[%emt 0:00:30]} 14. h4 {[%emt 0:10:30]} Ng4 {[%emt 0:07:30]} 15. Na4 {[%emt 0:09:30]} Bh6 {[%emt 0:11:30]} 16. Nec3 {[%emt 0:07:30]} f4 {[%emt 0:15:30]} 17. gxf4 {[%emt 0:07:30]} exf4 {[%emt 0:00:30]} 18. e4 {[%emt 0:00:30]} Ne5 {[%emt 0:00:30]} 19. Kf1 {[%emt 0:21:30]} Bg4 {[%emt 0:03:30]} 20. Rd4 {[%emt 0:06:44]} Nf3 {[%emt 0:06:30]} 21. Rd3 {[%emt 0:02:56]} Rhd8 {[%emt 0:00:30]} 22. Rxd8 {[%emt 0:03:08]} Rxd8 {[%emt 0:00:30]} 23. Kg2 {[%emt 0:00:46]} Bg7 {[%emt 0:31:41]} 24. Bc1 {[%emt 0:01:50]} Rd3 {[%emt 0:00:29]} 25. Ne2 {[%emt 0:01:31]} Nxh4+ {[%emt 0:00:38]} 26. Rxh4 {[%emt 0:00:22]} f3+ {[%emt 0:00:04]} 0-1

[Event "ESTCC 65 2019"]
[Site "Mali Losinj"]
[Date "2019.09.19"]
[Round "2.13"]
[White "Beilfuss, Wilfried"]
[Black "Werner, Clemens"]
[Result "0-1"]
[ECO "A21"]
[WhiteElo "2192"]
[BlackElo "2286"]
[Annotator "NA"]
[PlyCount "60"]
[EventDate "2019.09.18"]
[EventType "team-tourn"]
[EventCountry "CRO"]
[SourceTitle "playchess.com"]
[Source "ChessBase"]
[SourceQuality "1"]
[WhiteTeam "Germany"]
[BlackTeam "Germany"]
[WhiteTeamCountry "GER"]
[BlackTeamCountry "GER"]
[TimeControl "40/5400+30:1800+30"]

1. c4 {[%emt 0:00:30]} e5 {[%emt 0:00:30]} 2. Nc3 {[%emt 0:00:00]} Bb4 {[%emt 0:00:30]} 3. Qb3 {[%emt 0:00:00]} Ba5 {[%emt 0:02:30]} 4. Nf3 {[%emt 0:03:30]} d6 {[%emt 0:00:30]} 5. d4 {[%emt 0:03:30]} Nd7 {[%emt 0:04:30]} 6. e3 {[%emt 0:01:30]} Ngf6 {[%emt 0:00:30]} 7. Qc2 {[%emt 0:04:30]} O-O {[%emt 0:01:30]} 8. Be2 {[%emt 0:00:30]} Re8 {[%emt 0:06:30]} 9. O-O {[%emt 0:00:30]} c6 {[%emt 0:00:30]} 10. b3 {[%emt 0:03:30]} e4 {[%emt 0:08:30]} 11. Nd2 {[%emt 0:00:30]} Qe7 {[%emt 0:00:30]} 12. Ba3 {[%emt 0:04:30]} Nf8 {[%emt 0:00:30]} 13. b4 {[%emt 0:00:30]} Bc7 {[%emt 0:02:30]} 14. b5 {[%emt 0:00:30]} c5 {[%emt 0:04:30]} 15. Nb3 {[%emt 0:06:30]} b6 {[%emt 0:01:30]} 16. Bb2 {[%emt 0:00:30]} Ng6 {[%emt 0:02:30]} 17. Rfd1 {[%emt 0:17:30]} Nh4 {[%emt 0:02:30]} 18. Bf1 {[%emt 0:04:30]} d5 {[%emt 0:07:30]} 19. Nxd5 {[%emt 0:05:30]} Nxd5 {[%emt 0:01:30]} 20. cxd5 {[%emt 0:00:00]} Qd6 {[%emt 0:07:30]} 21. f4 {[%emt 0:02:00]} exf3 {[%emt 0:00:30]} 22. g3 {[%emt 0:00:00]} c4 {[%emt 0:08:30]} 23. Bxc4 {[%emt 0:04:00]} Rxe3 {[%emt 0:03:30]} 24. Qf2 {[%emt 0:04:30]} Nf5 {[%emt 0:12:30]} 25. Bc1 {[%emt 0:00:30]} Re8 {[%emt 0:05:08]} 26. Bf4 {[%emt 0:01:30]} Qb4 {[%emt 0:00:16]} 27. d6 {[%emt 0:06:30]} Bxd6 {[%emt 0:04:07]} 28. Bxd6 {[%emt 0:01:30]} Qxc4 {[%emt 0:01:52]} 29. Bf4 {[%emt 0:06:06]} Qd5 {[%emt 0:01:55]} 30. g4 {[%emt 0:04:53]} Re2 {[%emt 0:00:32]} 0-1

[Event "ESTCC 65 2019"]
[Site "Mali Losinj"]
[Date "2019.09.19"]
[Round "2.14"]
[White "Kierzek, Matthias"]
[Black "Becker, Norbert"]
[Result "1-0"]
[ECO "E16"]
[WhiteElo "2186"]
[BlackElo "2131"]
[Annotator "NA"]
[PlyCount "93"]
[EventDate "2019.09.18"]
[EventType "team-tourn"]
[EventCountry "CRO"]
[SourceTitle "playchess.com"]
[Source "ChessBase"]
[SourceQuality "1"]
[WhiteTeam "Germany"]
[BlackTeam "Germany"]
[WhiteTeamCountry "GER"]
[BlackTeamCountry "GER"]
[TimeControl "40/5400+30:1800+30"]

1. d4 {[%emt 0:00:30]} Nf6 {[%emt 0:00:30]} 2. c4 {[%emt 0:00:00]} e6 {[%emt 0:00:00]} 3. Nf3 {[%emt 0:00:00]} b6 {[%emt 0:00:00]} 4. g3 {[%emt 0:00:30]} Bb7 {[%emt 0:00:30]} 5. Bg2 {[%emt 0:00:30]} Bb4+ {[%emt 0:06:30]} 6. Bd2 {[%emt 0:00:00]} Bxd2+ {[%emt 0:01:30]} 7. Qxd2 {[%emt 0:01:00]} O-O {[%emt 0:00:30]} 8. O-O {[%emt 0:01:30]} d6 {[%emt 0:02:30]} 9. Qf4 {[%emt 0:17:30]} Nbd7 {[%emt 0:03:30]} 10. Nc3 {[%emt 0:00:30]} Qe7 {[%emt 0:06:30]} 11. Rfd1 {[%emt 0:05:30]} e5 {[%emt 0:08:30]} 12. dxe5 {[%emt 0:01:30]} Nxe5 {[%emt 0:00:30]} 13. Nd5 {[%emt 0:00:30]} Bxd5 {[%emt 0:21:30]} 14. cxd5 {[%emt 0:00:30]} Ng6 {[%emt 0:00:30]} 15. Qc4 {[%emt 0:04:30]} b5 {[%emt 0:05:30]} 16. Qc2 {[%emt 0:02:30]} Rab8 {[%emt 0:02:30]} 17. Rac1 {[%emt 0:02:30]} Rb7 {[%emt 0:00:30]} 18. Rd3 {[%emt 0:05:30]} Nd7 {[%emt 0:11:30]} 19. Rc3 {[%emt 0:10:30]} Nc5 {[%emt 0:01:30]} 20. b4 {[%emt 0:02:30]} Na4 {[%emt 0:01:30]} 21. Re3 {[%emt 0:07:30]} Qf6 {[%emt 0:02:30]} 22. Qc6 {[%emt 0:01:30]} Rbb8 {[%emt 0:01:30]} 23. Qxc7 {[%emt 0:07:30]} Nb6 {[%emt 0:01:30]} 24. Qxa7 {[%emt 0:01:30]} Nxd5 {[%emt 0:01:19]} 25. Rb3 {[%emt 0:00:30]} Nb6 {[%emt 0:02:37]} 26. Rbb1 {[%emt 0:04:30]} h5 {[%emt 0:03:23]} 27. Rc6 {[%emt 0:02:30]} Nc4 {[%emt 0:01:02]} 28. Qd4 {[%emt 0:00:30]} Qf5 {[%emt 0:03:41]} 29. e4 {[%emt 0:08:21]} Qd7 {[%emt 0:00:30]} 30. Ra6 {[%emt 0:00:12]} Ra8 {[%emt 0:01:12]} 31. Rxa8 {[%emt 0:00:17]} Rxa8 {[%emt 0:00:04]} 32. Nd2 {[%emt 0:01:16]} Nge5 {[%emt 0:03:58]} 33. Nxc4 {[%emt 0:01:06]} Nxc4 {[%emt 0:00:30]} 34. Bf1 {[%emt 0:05:37]} Ne5 {[%emt 0:00:20]} 35. Qd5 {[%emt 0:00:23]} Rb8 {[%emt 0:02:53]} 36. Rc1 {[%emt 0:01:09]} h4 {[%emt 0:01:18]} 37. Be2 {[%emt 0:00:47]} h3 {[%emt 0:01:19]} 38. Kf1 {[%emt 0:01:46]} Rb6 {[%emt 0:01:20]} 39. f4 {[%emt 0:00:38]} Ng4 {[%emt 0:00:44]} 40. Qa8+ {[%emt 0:02:19]} Kh7 {[%emt 0:00:08]} 41. Rc8 {[%emt 0:00:39]} Kg6 {[%emt 0:08:42]} 42. f5+ {[%emt 0:12:57]} Kg5 {[%emt 0:00:30]} 43. Bxg4 {[%emt 0:00:05]} Kxg4 {[%emt 0:00:30]} 44. Rc3 {[%emt 0:00:49]} g5 {[%emt 0:06:10]} 45. Qd5 {[%emt 0:02:58]} Kh5 {[%emt 0:00:34]} 46. g4+ {[%emt 0:02:06]} Kxg4 {[%emt 0:03:21]} 47. Qd3 {[%emt 0:04:38]} 1-0

[Event "ESTCC 65 2019"]
[Site "Mali Losinj"]
[Date "2019.09.19"]
[Round "2.15"]
[White "Mueller, Gerhard"]
[Black "Herbrechtsmeier, Christof"]
[Result "1/2-1/2"]
[ECO "D01"]
[WhiteElo "2104"]
[BlackElo "2210"]
[Annotator "NA"]
[PlyCount "60"]
[EventDate "2019.09.18"]
[EventType "team-tourn"]
[EventCountry "CRO"]
[SourceTitle "playchess.com"]
[Source "ChessBase"]
[SourceQuality "1"]
[WhiteTeam "Germany"]
[BlackTeam "Germany"]
[WhiteTeamCountry "GER"]
[BlackTeamCountry "GER"]
[TimeControl "40/5400+30:1800+30"]

1. d4 {[%emt 0:00:30]} Nf6 {[%emt 0:00:30]} 2. Nc3 {[%emt 0:00:00]} d5 {[%emt 0:00:00]} 3. Bg5 {[%emt 0:00:00]} c5 {[%emt 0:00:00]} 4. Bxf6 {[%emt 0:02:30]} gxf6 {[%emt 0:00:30]} 5. e3 {[%emt 0:00:30]} e6 {[%emt 0:00:30]} 6. Nge2 {[%emt 0:05:30]} Nc6 {[%emt 0:00:30]} 7. g3 {[%emt 0:00:30]} cxd4 {[%emt 0:00:30]} 8. exd4 {[%emt 0:00:30]} Qb6 {[%emt 0:05:30]} 9. b3 {[%emt 0:04:30]} Bd7 {[%emt 0:01:30]} 10. a3 {[%emt 0:09:30]} Rc8 {[%emt 0:01:30]} 11. Qd2 {[%emt 0:07:30]} Qa5 {[%emt 0:06:30]} 12. Nb1 {[%emt 0:06:30]} Qc7 {[%emt 0:08:30]} 13. Bg2 {[%emt 0:03:30]} h5 {[%emt 0:06:30]} 14. O-O {[%emt 0:02:30]} Ne7 {[%emt 0:04:30]} 15. c3 {[%emt 0:01:30]} h4 {[%emt 0:02:30]} 16. Qf4 {[%emt 0:06:30]} Qb6 {[%emt 0:09:30]} 17. b4 {[%emt 0:01:30]} f5 {[%emt 0:05:30]} 18. Re1 {[%emt 0:03:30]} Ng6 {[%emt 0:01:30]} 19. Qe3 {[%emt 0:02:30]} hxg3 {[%emt 0:04:30]} 20. hxg3 {[%emt 0:00:00]} Bh6 {[%emt 0:01:30]} 21. f4 {[%emt 0:00:00]} O-O {[%emt 0:05:30]} 22. Kf2 {[%emt 0:01:30]} Rfe8 {[%emt 0:03:30]} 23. Rh1 {[%emt 0:00:30]} Kg7 {[%emt 0:00:30]} 24. Nd2 {[%emt 0:02:30]} e5 {[%emt 0:01:30]} 25. Rxh6 {[%emt 0:02:30]} Kxh6 {[%emt 0:02:30]} 26. fxe5+ {[%emt 0:00:30]} Kg7 {[%emt 0:00:30]} 27. Bxd5 {[%emt 0:02:30]} Bc6 {[%emt 0:01:30]} 28. Bf3 {[%emt 0:05:30]} Bxf3 {[%emt 0:05:30]} 29. Nxf3 {[%emt 0:00:00]} f6 {[%emt 0:01:30]} 30. Rh1 {[%emt 0:03:00]} Rh8 {[%emt 0:01:31]} 1/2-1/2

[Event "ESTCC 65 2019"]
[Site "Mali Losinj"]
[Date "2019.09.19"]
[Round "2.16"]
[White "Kiefer, Gerhard"]
[Black "Thoele, Wolfgang"]
[Result "1-0"]
[ECO "B01"]
[WhiteElo "2227"]
[BlackElo "1865"]
[Annotator "NA"]
[PlyCount "53"]
[EventDate "2019.09.18"]
[EventType "team-tourn"]
[EventCountry "CRO"]
[SourceTitle "playchess.com"]
[Source "ChessBase"]
[SourceQuality "1"]
[WhiteTeam "Germany"]
[BlackTeam "Germany"]
[WhiteTeamCountry "GER"]
[BlackTeamCountry "GER"]
[TimeControl "40/5400+30:1800+30"]

1. e4 {[%emt 0:00:30]} d5 {[%emt 0:00:30]} 2. exd5 Qxd5 {[%emt 0:00:00]} 3. Nc3 {[%emt 0:00:00]} Qd8 {[%emt 0:00:00]} 4. d4 {[%emt 0:01:30]} Nf6 {[%emt 0:01:30]} 5. Nf3 {[%emt 0:05:30]} Bg4 {[%emt 0:00:30]} 6. h3 {[%emt 0:01:30]} Bh5 {[%emt 0:03:30]} 7. g4 {[%emt 0:05:30]} Bg6 {[%emt 0:00:30]} 8. Ne5 {[%emt 0:00:30]} e6 {[%emt 0:06:30]} 9. Bg2 {[%emt 0:00:30]} c6 {[%emt 0:01:30]} 10. h4 {[%emt 0:10:30]} h6 {[%emt 0:24:30]} 11. Nxg6 {[%emt 0:01:30]} fxg6 {[%emt 0:00:30]} 12. Qd3 {[%emt 0:01:30]} Kf7 {[%emt 0:10:30]} 13. g5 {[%emt 0:00:30]} Ng8 {[%emt 0:02:30]} 14. Qf3+ {[%emt 0:04:30]} Ke8 {[%emt 0:01:30]} 15. Qe4 {[%emt 0:01:30]} Kf7 {[%emt 0:08:30]} 16. Qf3+ {[%emt 0:27:30]} Ke8 {[%emt 0:00:30]} 17. Bd2 {[%emt 0:00:30]} Ne7 {[%emt 0:01:30]} 18. O-O-O {[%emt 0:00:30]} h5 {[%emt 0:04:30]} 19. Rhe1 {[%emt 0:00:30]} Qd7 {[%emt 0:03:30]} 20. Bh3 {[%emt 0:00:30]} Nf5 {[%emt 0:00:30]} 21. Bxf5 {[%emt 0:00:30]} gxf5 {[%emt 0:00:30]} 22. Qxf5 {[%emt 0:00:30]} Kd8 {[%emt 0:03:30]} 23. Rxe6 {[%emt 0:04:30]} Bb4 {[%emt 0:00:30]} 24. d5 {[%emt 0:03:30]} Rf8 {[%emt 0:00:30]} 25. Qe4 {[%emt 0:00:30]} c5 {[%emt 0:00:30]} 26. Qe5 {[%emt 0:01:30]} Na6 {[%emt 0:00:30]} 27. Rd6 {[%emt 0:00:30]} 1-0

[Event "ESTCC 65 2019"]
[Site "Mali Losinj"]
[Date "2019.09.19"]
[Round "2.17"]
[White "Kolbak, Jens"]
[Black "Lofgren, Claes"]
[Result "0-1"]
[ECO "A39"]
[WhiteElo "2173"]
[BlackElo "2059"]
[Annotator "ChessBase"]
[PlyCount "138"]
[EventDate "2019.09.18"]
[EventType "team-tourn"]
[EventCountry "CRO"]
[SourceTitle "playchess.com"]
[Source "ChessBase"]
[SourceQuality "1"]
[WhiteTeam "Denmark"]
[BlackTeam "Denmark"]
[WhiteTeamCountry "DEN"]
[BlackTeamCountry "DEN"]
[TimeControl "40/5400+30:1800+30"]

1. Nf3 {[%emt 0:00:30]} c5 {[%emt 0:00:30]} 2. c4 {[%emt 0:02:30]} Nf6 {[%emt 0:00:30]} 3. d4 {[%emt 0:00:30]} cxd4 {[%emt 0:01:30]} 4. Nxd4 {[%emt 0:00:30]} Nc6 {[%emt 0:00:30]} 5. Nc3 {[%emt 0:00:30]} g6 {[%emt 0:01:30]} 6. g3 {[%emt 0:01:30]} Bg7 {[%emt 0:00:30]} 7. Bg2 {[%emt 0:00:30]} O-O {[%emt 0:01:30]} 8. O-O {[%emt 0:00:00]} Nxd4 {[%emt 0:01:30]} 9. Qxd4 {[%emt 0:00:00]} d6 {[%emt 0:00:30]} 10. Rb1 {[%emt 0:17:30]} Bf5 {[%emt 0:05:30]} 11. Ra1 {[%emt 0:00:30]} Ne4 {[%emt 0:05:30]} 12. Qe3 {[%emt 0:00:30]} Nxc3 {[%emt 0:00:30]} 13. bxc3 {[%emt 0:00:30]} Qc7 {[%emt 0:04:30]} 14. Bd2 {[%emt 0:03:30]} a6 {[%emt 0:06:30]} 15. a4 {[%emt 0:04:30]} Rab8 {[%emt 0:05:30]} 16. a5 {[%emt 0:00:30]} Bf6 {[%emt 0:05:30]} 17. Ra4 {[%emt 0:03:30]} Bc2 {[%emt 0:09:30]} 18. Rb4 {[%emt 0:00:30]} Qxa5 {[%emt 0:02:30]} 19. Bxb7 {[%emt 0:01:30]} Qa3 {[%emt 0:04:30]} 20. Rc1 {[%emt 0:08:30]} a5 {[%emt 0:02:30]} 21. Rb6 {[%emt 0:15:30]} Bb3 {[%emt 0:02:30]} 22. Bd5 {[%emt 0:10:30]} Rxb6 {[%emt 0:08:30]} 23. Qxb6 {[%emt 0:00:30]} e6 {[%emt 0:01:30]} 24. Bf3 {[%emt 0:00:30]} Bxc4 {[%emt 0:00:30]} 25. h4 {[%emt 0:00:30]} a4 {[%emt 0:03:30]} 26. h5 {[%emt 0:01:30]} Qc5 {[%emt 0:01:30]} 27. Qb1 {[%emt 0:04:30]} a3 {[%emt 0:02:30]} 28. Be3 {[%emt 0:01:30]} a2 {[%emt 0:01:30]} 29. Qe4 {[%emt 0:01:30]} Qa5 {[%emt 0:02:02]} 30. Qxc4 {[%emt 0:00:30]} a1=Q {[%emt 0:00:10]} 31. Rxa1 {[%emt 0:00:00]} Qxa1+ {[%emt 0:00:18]} 32. Kg2 {[%emt 0:00:00]} Qxc3 {[%emt 0:00:53]} 33. Qa6 {[%emt 0:03:06]} d5 {[%emt 0:01:28]} 34. h6 {[%emt 0:01:59]} Qc4 {[%emt 0:04:09]} 35. Qb6 {[%emt 0:01:37]} Rc8 {[%emt 0:01:36]} 36. g4 {[%emt 0:01:02]} d4 {[%emt 0:05:05]} 37. Bd2 {[%emt 0:00:09]} Qc5 {[%emt 0:01:20]} 38. Qb7 {[%emt 0:00:20]} Rd8 {[%emt 0:03:39]} 39. Qe4 {[%emt 0:02:53]} Bg5 {[%emt 0:03:14]} 40. Qd3 {[%emt 0:00:06]} Bxd2 {[%emt 0:00:58]} 41. Qxd2 {[%emt 0:30:05]} Qe5 {[%emt 0:30:38]} 42. Bb7 {[%emt 0:00:00]} g5 {[%emt 0:00:00]} 43. Qc1 {[%emt 0:00:00]} Qf4 {[%emt 0:00:00]} 44. Qxf4 {[%emt 0:00:00]} gxf4 {[%emt 0:00:00]} 45. Kf3 {[%emt 0:00:00]} e5 {[%emt 0:00:00]} 46. g5 {[%emt 0:00:00]} f5 {[%emt 0:00:00]} 47. gxf6 {[%emt 0:00:00]} Kf7 {[%emt 0:00:00]} 48. Be4 {[%emt 0:00:00]} Kxf6 {[%emt 0:00:00]} 49. Bxh7 {[%emt 0:00:00]} Rh8 {[%emt 0:00:00]} 50. Bd3 {[%emt 0:00:00]} Rxh6 {[%emt 0:00:00]} 51. Ke4 {[%emt 0:00:00]} Rh1 {[%emt 0:00:00]} 52. f3 {[%emt 0:00:00]} Ke6 {[%emt 0:00:00]} 53. Bc4+ {[%emt 0:00:00]} Kd6 {[%emt 0:00:00]} 54. Bd3 {[%emt 0:00:00]} Rh5 {[%emt 0:00:00]} 55. Ba6 {[%emt 0:00:00]} Kc5 {[%emt 0:00:00]} 56. Kd3 {[%emt 0:02:49]} Rh6 {[%emt 0:00:00]} 57. Bc8 {[%emt 0:00:50]} Rb6 {[%emt 0:00:00]} 58. Kd2 {[%emt 0:04:21]} Rb2+ {[%emt 0:00:00]} 59. Kd3 {[%emt 0:00:17]} Rb3+ {[%emt 0:00:00]} 60. Kd2 {[%emt 0:00:06]} Re3 {[%emt 0:02:27]} 61. Bb7 {[%emt 0:02:33]} Kd6 {[%emt 0:02:42]} 62. Ba8 {[%emt 0:03:01]} Ke6 {[%emt 0:00:28]} 63. Bc6 {[%emt 0:00:49]} Kf6 {[%emt 0:00:24]} 64. Bb5 {[%emt 0:01:28]} e4 {[%emt 0:01:20]} 65. fxe4 {[%emt 0:00:15]} Rxe4 {[%emt 0:00:17]} 66. Kd3 {[%emt 0:01:48]} Ke5 {[%emt 0:00:14]} 67. Bc6 {[%emt 0:00:17]} Re3+ {[%emt 0:00:07]} 68. Kd2 {[%emt 0:00:04]} d3 {[%emt 0:01:24]} 69. exd3 {[%emt 0:00:10]} Kd4 {[%emt 0:00:06]} 0-1